bitfinex-derivatives/quotes_SOLF0:USTF0_20260306
["timestamp","ask_amount","ask_price","bid_price","bid_amount"]
[1772836187738,7.35827318,84.724,84.699,3.94120462]
[1772836188034,7.35827318,84.723,84.699,3.94120462]
[1772836188232,7.35827318,84.722,84.699,3.94120462]
[1772836188437,7.35827318,84.721,84.699,3.94120462]
[1772836188628,7.35827318,84.72,84.699,3.94120462]
[1772836188828,4.01028781,84.73,84.699,3.94120462]
[1772836189030,16.48171864,84.729,84.699,3.94120462]
[1772836189239,16.48171864,84.728,84.699,3.94120462]
[1772836189538,16.48171864,84.727,84.699,3.94120462]
[1772836189738,7.34713735,84.726,84.699,3.94120462]
[1772836189940,7.34713735,84.725,84.699,3.94120462]
[1772836190140,7.34713735,84.724,84.699,3.94120462]
[1772836190341,7.34713735,84.723,84.699,3.94120462]
[1772836190541,7.34713735,84.722,84.699,3.94120462]
[1772836190842,7.34713735,84.721,84.699,3.94120462]
[1772836191046,7.34713735,84.72,84.699,3.94120462]
[1772836191342,7.34713735,84.719,84.699,3.94120462]
[1772836191644,4.01028781,84.734,84.699,3.94120462]
[1772836191843,20.49713525,84.733,84.699,3.94120462]
[1772836192044,16.48684744,84.732,84.699,3.94120462]
[1772836192243,16.48684744,84.731,84.699,3.94120462]
[1772836192440,16.48684744,84.73,84.699,3.94120462]
[1772836192746,16.48684744,84.729,84.699,3.94120462]
[1772836193042,16.48684744,84.728,84.699,3.94120462]
[1772836193242,16.48684744,84.727,84.699,3.94120462]
[1772836193443,16.48684744,84.726,84.699,3.94120462]
[1772836193634,16.48684744,84.725,84.699,3.94120462]
[1772836193839,7.34942234,84.724,84.699,3.94120462]
[1772836194039,7.34942234,84.723,84.699,3.94120462]
[1772836194237,7.34942234,84.722,84.699,3.94120462]
[1772836194438,7.34942234,84.721,84.699,3.94120462]
[1772836194641,7.34942234,84.72,84.699,3.94120462]
[1772836194838,7.34942234,84.719,84.699,3.94120462]
[1772836195043,7.34942234,84.718,84.699,3.94120462]
[1772836195244,7.34942234,84.717,84.691,10.627]
[1772836195443,4.01028781,84.725,84.692,3.95210832]
[1772836195642,16.50339294,84.724,84.692,3.95210832]
[1772836195843,7.35447591,84.723,84.692,3.95210832]
[1772836196142,7.35447591,84.722,84.692,3.95210832]
[1772836196338,7.35447591,84.721,84.692,3.95210832]
[1772836196543,7.35447591,84.72,84.692,3.95210832]
[1772836196741,7.35447591,84.719,84.692,3.95210832]
[1772836196939,7.35447591,84.718,84.692,3.95210832]
[1772836197239,7.35447591,84.717,84.692,3.95210832]
[1772836197446,7.35447591,84.716,84.692,3.95210832]
[1772836197645,4.01028781,84.725,84.692,3.95210832]
[1772836197844,16.50451617,84.724,84.692,3.95210832]
[1772836198141,20.23945142,84.723,84.692,3.95210832]
[1772836198341,7.35497481,84.722,84.692,3.95210832]
[1772836198540,7.35497481,84.721,84.692,3.95210832]
[1772836198745,7.35497481,84.72,84.692,3.95210832]
[1772836198946,7.35497481,84.719,84.692,3.95210832]
[1772836199149,7.35497481,84.718,84.692,3.95210832]
[1772836199349,7.35497481,84.717,84.692,3.95210832]
[1772836199551,7.35497481,84.716,84.692,3.95210832]
[1772836199747,7.35497481,84.715,84.692,3.95210832]
[1772836200050,3.73493525,84.723,84.692,3.95210832]
[1772836200350,3.73493525,84.721,84.692,3.95210832]
[1772836200549,7.35494815,84.72,84.692,3.95210832]
[1772836200742,7.35494815,84.719,84.692,3.95210832]
[1772836200945,7.35494815,84.718,84.692,3.95210832]
[1772836201147,7.35494815,84.717,84.692,3.95210832]
[1772836201449,7.35494815,84.716,84.692,3.95210832]
[1772836201650,7.35494815,84.715,84.692,3.95210832]
[1772836201949,3.73493525,84.721,84.692,3.95210832]
[1772836202248,7.35479201,84.72,84.692,3.95210832]
[1772836202449,7.35479201,84.719,84.692,3.95210832]
[1772836202651,7.35479201,84.718,84.692,3.95210832]
[1772836202850,7.35479201,84.717,84.692,3.95210832]
[1772836203049,7.35479201,84.716,84.692,3.95210832]
[1772836203250,7.35479201,84.715,84.692,3.95210832]
[1772836203451,3.73493525,84.721,84.692,3.95210832]
[1772836203652,7.35467858,84.72,84.692,3.95210832]
[1772836203845,7.35467858,84.719,84.692,3.95210832]
[1772836204048,7.35467858,84.718,84.692,3.95210832]
[1772836204249,7.35467858,84.717,84.692,3.95210832]
[1772836204547,7.35467858,84.716,84.692,3.95210832]
[1772836204755,3.90198674,84.741,84.701,3.65818399]
[1772836204954,16.50374141,84.74,84.711,3.65818399]
[1772836205156,7.35473162,84.739,84.711,3.65818399]
[1772836205348,3.90198674,84.751,84.711,3.65818399]
[1772836205551,3.90198674,84.749,84.711,3.65818399]
[1772836205754,3.90198674,84.747,84.704,10.625]
[1772836205953,3.90198674,84.745,84.704,10.625]
[1772836206254,3.90198674,84.739,84.697,10.626]
[1772836206452,3.90198674,84.737,84.697,10.626]
[1772836206751,3.90198674,84.735,84.697,10.626]
[1772836206952,3.90198674,84.733,84.697,10.626]
[1772836207145,3.90198674,84.731,84.697,10.626]
[1772836207350,3.90198674,84.729,84.697,10.626]
[1772836207549,3.90198674,84.727,84.697,10.626]
[1772836207752,7.34883273,84.726,84.697,10.626]
[1772836208055,7.34883273,84.725,84.697,10.626]
[1772836208246,7.34883273,84.724,84.697,10.626]
[1772836208452,7.34883273,84.723,84.697,10.626]
[1772836208751,3.90198674,84.727,84.697,10.626]
[1772836208950,11.2485836,84.726,84.697,10.626]
[1772836209148,7.34659686,84.725,84.697,10.626]
[1772836209345,7.34659686,84.724,84.697,10.626]
[1772836209544,7.34659686,84.723,84.697,10.626]
[1772836209749,3.90198674,84.726,84.697,10.626]
[1772836209955,7.34656814,84.725,84.697,10.626]
[1772836210253,7.34656814,84.724,84.697,10.626]
[1772836210455,7.34656814,84.723,84.697,10.626]
[1772836210655,7.34656814,84.722,84.697,10.626]
[1772836210855,7.34656814,84.721,84.697,10.626]
[1772836211056,7.34656814,84.72,84.697,10.626]
[1772836211258,3.90198674,84.726,84.697,10.626]
[1772836211458,7.34652894,84.725,84.697,10.626]
[1772836211755,7.34652894,84.724,84.697,10.626]
[1772836211956,7.34652894,84.723,84.697,10.626]
[1772836212255,7.34652894,84.722,84.697,10.626]
[1772836212457,7.34652894,84.721,84.697,10.626]
[1772836212657,10.98975078,84.747,84.677,3.65818399]
[1772836212658,3.90198674,84.719,84.677,3.65818399]
[1772836212858,14.70332669,84.747,84.642,21.266]
[1772836212859,7.34652894,84.718,84.681,3.65818399]
[1772836213058,7.34652894,84.717,84.681,3.65818399]
[1772836213358,7.34652894,84.716,84.681,3.65818399]
[1772836213559,7.34652894,84.715,84.681,3.65818399]
[1772836213855,7.34652894,84.714,84.693,3.65818399]
[1772836214058,7.34599478,84.713,84.693,3.65818399]
[1772836214250,3.90198674,84.724,84.693,3.65818399]
[1772836214558,16.48487928,84.723,84.693,3.65818399]
[1772836214763,16.48487928,84.722,84.693,3.65818399]
[1772836215058,20.38686602,84.721,84.693,3.65818399]
[1772836215257,7.34554358,84.72,84.693,3.65818399]
[1772836215555,7.34554358,84.719,84.693,3.65818399]
[1772836215857,7.34554358,84.718,84.693,3.65818399]
[1772836216059,7.34554358,84.717,84.693,3.65818399]
[1772836216259,7.34554358,84.716,84.693,3.65818399]
[1772836216458,7.34554358,84.715,84.693,3.65818399]
[1772836216661,7.34554358,84.714,84.693,3.65818399]
[1772836216958,3.90198674,84.721,84.693,3.65818399]
[1772836217159,7.34473576,84.72,84.693,3.65818399]
[1772836217459,7.34473576,84.719,84.693,3.65818399]
[1772836217659,7.34473576,84.718,84.693,3.65818399]
[1772836217858,7.34473576,84.717,84.693,3.65818399]
[1772836218159,7.34473576,84.716,84.693,3.65818399]
[1772836218359,7.34473576,84.715,84.693,3.65818399]
[1772836218555,3.90198674,84.721,84.693,3.65818399]
[1772836218756,7.3310263,84.72,84.693,3.65818399]
[1772836218957,7.3310263,84.719,84.693,3.65818399]
[1772836219156,7.3310263,84.718,84.693,3.65818399]
[1772836219358,7.3310263,84.717,84.693,3.65818399]
[1772836219557,7.3310263,84.716,84.693,3.65818399]
[1772836219861,7.3310263,84.715,84.693,3.65818399]
[1772836220160,3.90198674,84.721,84.693,3.65818399]
[1772836220361,7.33043197,84.72,84.693,3.65818399]
[1772836220564,7.33043197,84.719,84.693,3.65818399]
[1772836220762,7.33043197,84.718,84.693,3.65818399]
[1772836220961,7.33043197,84.717,84.693,3.65818399]
[1772836221164,7.33043197,84.716,84.693,3.65818399]
[1772836221364,7.33043197,84.715,84.693,3.65818399]
[1772836221657,3.90198674,84.721,84.693,3.65818399]
[1772836221858,7.33016622,84.72,84.693,3.65818399]
[1772836222056,7.33016622,84.719,84.693,3.65818399]
[1772836222260,7.33016622,84.718,84.693,3.65818399]
[1772836222461,7.33016622,84.717,84.693,3.65818399]
[1772836222764,7.33016622,84.716,84.693,3.65818399]
[1772836223064,3.90198674,84.721,84.693,3.65818399]
[1772836223264,7.32976699,84.72,84.693,3.65818399]
[1772836223563,7.32976699,84.719,84.693,3.65818399]
[1772836223764,7.32976699,84.718,84.693,3.65818399]
[1772836223962,7.32976699,84.717,84.693,3.65818399]
[1772836224161,7.32976699,84.716,84.693,3.65818399]
[1772836224360,3.90198674,84.721,84.693,3.65818399]
[1772836224563,7.32948178,84.72,84.693,3.65818399]
[1772836224765,7.32948178,84.719,84.693,3.65818399]
[1772836224966,3.90198674,84.717,84.672,3.65818399]
[1772836225167,3.90198674,84.715,84.672,3.65818399]
[1772836225366,3.90198674,84.713,84.672,3.65818399]
[1772836225567,3.90198674,84.711,84.672,3.65818399]
[1772836225767,3.90198674,84.709,84.672,3.65818399]
[1772836225963,3.90198674,84.707,84.672,3.65818399]
[1772836228168,3.90198674,84.707,84.673,3.65818399]
[1772836229767,3.90198674,84.707,84.675,3.65818399]
[1772836236674,3.90198674,84.707,84.676,10.629]
[1772836247785,7.32774883,84.706,84.676,10.629]
[1772836247985,3.90198674,84.707,84.676,10.629]
[1772836247986,7.32774883,84.705,84.676,10.629]
[1772836248183,3.90198674,84.707,84.676,10.629]
[1772836248384,7.32737234,84.706,84.676,10.629]
[1772836248584,7.32737234,84.705,84.676,10.629]
[1772836248785,3.90198674,84.707,84.676,10.629]
[1772836248982,7.32737234,84.706,84.676,10.629]
[1772836249183,7.32737234,84.705,84.676,10.629]
[1772836249387,3.90198674,84.707,84.676,10.629]
[1772836249588,7.32706185,84.706,84.676,10.629]
[1772836249789,7.32706185,84.705,84.676,10.629]
[1772836249990,3.90198674,84.707,84.676,10.629]
[1772836250190,7.32706187,84.706,84.676,10.629]
[1772836250393,7.32706187,84.705,84.676,10.629]
[1772836250591,7.32706187,84.704,84.676,10.629]
[1772836250791,3.90198674,84.707,84.676,10.629]
[1772836250991,7.32961045,84.706,84.676,10.629]
[1772836251185,7.32961045,84.705,84.676,10.629]
[1772836251385,7.32961045,84.704,84.676,10.629]
[1772836251691,7.32961045,84.703,84.676,10.629]
[1772836251889,3.90198674,84.707,84.676,10.629]
[1772836252091,7.33187248,84.706,84.676,10.629]
[1772836252294,7.33187248,84.705,84.676,10.629]
[1772836252489,7.33187248,84.704,84.676,10.629]
[1772836252686,7.33187248,84.703,84.676,10.629]
[1772836252884,3.90198674,84.707,84.676,10.629]
[1772836253090,7.3323451,84.706,84.676,10.629]
[1772836253287,7.3323451,84.705,84.676,10.629]
[1772836253490,7.3323451,84.704,84.676,14.31882502]
[1772836253690,3.90198674,84.707,84.677,3.68982502]
[1772836253892,7.3329799,84.706,84.677,3.68982502]
[1772836254087,7.3329799,84.705,84.677,3.68982502]
[1772836254294,3.85102113,84.717,84.681,3.68982502]
[1772836254495,7.33402073,84.716,84.681,3.68982502]
[1772836254692,7.33402073,84.715,84.681,3.68982502]
[1772836254893,7.33402073,84.714,84.681,3.68982502]
[1772836255087,7.33402073,84.713,84.681,3.68982502]
[1772836255292,7.33402073,84.712,84.681,3.68982502]
[1772836255596,3.85102113,84.717,84.681,3.68982502]
[1772836255789,7.33528487,84.716,84.683,3.68982502]
[1772836255991,7.33528487,84.715,84.683,3.68982502]
[1772836256187,7.33528487,84.714,84.683,3.68982502]
[1772836256389,7.33528487,84.713,84.683,3.68982502]
[1772836256598,7.33528487,84.712,84.685,3.68658711]
[1772836256798,3.85102113,84.717,84.685,3.68658711]
[1772836256994,7.33620349,84.716,84.685,3.68658711]
[1772836257194,7.33620349,84.715,84.685,3.68658711]
[1772836257393,7.33620349,84.714,84.685,3.68658711]
[1772836257592,7.33620349,84.713,84.685,3.68658711]
[1772836257794,7.33620349,84.712,84.685,3.68658711]
[1772836258098,7.33620349,84.711,84.686,10.628]
[1772836258297,3.85102113,84.717,84.686,10.628]
[1772836258597,16.55145985,84.716,84.686,10.628]
[1772836258798,7.33752099,84.715,84.686,10.628]
[1772836259097,7.33752099,84.714,84.686,14.31458711]
[1772836259298,7.33752099,84.713,84.689,3.68658711]
[1772836259498,7.33752099,84.712,84.69,3.64778209]
[1772836259799,3.8983566,84.726,84.69,7.3343692]
[1772836260098,20.4502435,84.725,84.691,3.68658711]
[1772836260298,16.5518869,84.724,84.691,3.68658711]
[1772836260498,16.5518869,84.723,84.691,3.68658711]
[1772836260698,16.5518869,84.722,84.691,3.68658711]
[1772836260901,16.5518869,84.721,84.691,3.68658711]
[1772836261098,16.5518869,84.72,84.693,3.68658711]
[1772836261297,7.33776254,84.719,84.693,3.68658711]
[1772836261500,7.33776254,84.718,84.693,3.68658711]
[1772836261798,7.33776254,84.717,84.693,3.68658711]
[1772836262100,7.33776254,84.716,84.693,3.68658711]
[1772836262400,3.8983566,84.725,84.693,3.68658711]
[1772836262597,16.55205292,84.724,84.693,3.68658711]
[1772836262797,16.55205292,84.723,84.693,3.68658711]
[1772836262998,16.55205292,84.722,84.693,3.68658711]
[1772836263194,16.55205292,84.721,84.693,3.68658711]
[1772836263399,7.33808511,84.72,84.693,3.68658711]
[1772836263699,3.8983566,84.725,84.693,3.68658711]
[1772836263900,7.33808699,84.724,84.693,3.68658711]
[1772836264099,7.33808699,84.723,84.693,3.68658711]
[1772836264401,7.33808699,84.722,84.693,3.68658711]
[1772836264600,3.8983566,84.725,84.693,3.68658711]
[1772836264601,7.33808699,84.721,84.693,3.68658711]
[1772836264801,3.8983566,84.725,84.693,3.68658711]
[1772836265099,7.33731647,84.724,84.693,3.68658711]
[1772836265398,7.33731647,84.723,84.693,3.68658711]
[1772836265595,7.33731647,84.722,84.693,3.68658711]
[1772836265796,7.33731647,84.721,84.693,3.68658711]
[1772836265997,3.8983566,84.725,84.693,3.68658711]
[1772836266198,7.33660023,84.724,84.693,3.68658711]
[1772836266500,7.33660023,84.723,84.693,3.68658711]
[1772836266696,7.33660023,84.722,84.693,3.68658711]
[1772836266898,3.8983566,84.725,84.693,3.68658711]
[1772836267197,7.33593028,84.724,84.693,3.68658711]
[1772836267497,7.33593028,84.723,84.693,3.68658711]
[1772836267697,3.8983566,84.725,84.693,3.68658711]
[1772836267900,7.3353234,84.724,84.693,3.68658711]
[1772836268091,7.3353234,84.723,84.693,3.68658711]
[1772836268294,3.8983566,84.725,84.693,3.68658711]
[1772836268601,7.33462474,84.724,84.693,3.68658711]
[1772836268898,7.33462474,84.723,84.693,3.68658711]
[1772836269198,3.8983566,84.725,84.693,3.68658711]
[1772836269500,7.33396914,84.724,84.693,3.68658711]
[1772836269695,3.8983566,84.725,84.693,3.68658711]
[1772836269896,7.33396914,84.724,84.693,3.68658711]
[1772836270095,3.8983566,84.725,84.693,3.68658711]
[1772836270296,7.33337237,84.724,84.693,3.68658711]
[1772836270496,3.8983566,84.725,84.693,3.68658711]
[1772836270694,7.33320416,84.724,84.693,3.68658711]
[1772836270894,3.8983566,84.725,84.693,3.68658711]
[1772836271096,7.33320416,84.724,84.693,3.68658711]
[1772836271296,11.22201428,84.723,84.693,3.68658711]
[1772836271501,3.88949656,84.739,84.695,3.72381976]
[1772836271691,3.88949656,84.737,84.695,3.72381976]
[1772836271893,20.42832414,84.736,84.695,3.72381976]
[1772836272094,16.53882758,84.735,84.695,3.72381976]
[1772836272302,16.53882758,84.734,84.695,3.72381976]
[1772836272500,16.53882758,84.733,84.695,3.72381976]
[1772836272701,16.53882758,84.732,84.695,3.72381976]
[1772836272900,16.53882758,84.731,84.697,3.72381976]
[1772836273099,7.33253141,84.73,84.697,3.72381976]
[1772836273302,7.33253141,84.729,84.697,3.72381976]
[1772836273501,3.88949656,84.736,84.697,3.72381976]
[1772836273502,7.33253141,84.728,84.697,3.72381976]
[1772836273701,7.33253141,84.727,84.697,3.72381976]
[1772836273901,7.33253141,84.726,84.697,3.72381976]
[1772836274198,7.33253141,84.725,84.697,3.72381976]
[1772836274404,3.88949656,84.736,84.697,3.72381976]
[1772836274596,3.88949656,84.734,84.697,3.72381976]
[1772836274800,3.64718201,84.73,84.69,3.72381976]
[1772836275101,3.88949656,84.728,84.69,3.72381976]
[1772836275300,3.88949656,84.726,84.69,3.72381976]
[1772836275595,7.33064732,84.725,84.69,3.72381976]
[1772836275797,3.88949656,84.726,84.69,3.72381976]
[1772836276001,3.88949656,84.724,84.69,3.72381976]
[1772836278202,3.88949656,84.719,84.68,3.72381976]
[1772836285114,3.88949656,84.717,84.68,3.72381976]
[1772836285309,3.88949656,84.715,84.68,3.72381976]
[1772836285509,3.88949656,84.713,84.68,3.72381976]
[1772836285710,3.88949656,84.711,84.68,3.72381976]
[1772836285910,7.3333103,84.71,84.68,3.72381976]
[1772836286106,7.3333103,84.709,84.68,3.72381976]
[1772836286310,3.88949656,84.711,84.68,3.72381976]
[1772836286513,11.22237011,84.71,84.68,3.72381976]
[1772836286713,7.33287355,84.709,84.68,3.72381976]
[1772836286912,3.88949656,84.71,84.68,3.72381976]
[1772836287113,7.33287343,84.709,84.68,3.72381976]
[1772836287313,3.88949656,84.71,84.68,3.72381976]
[1772836287513,7.33276858,84.709,84.68,3.72381976]
[1772836287709,3.88949656,84.71,84.672,10.629]
[1772836287909,3.88949656,84.708,84.672,10.629]
[1772836288111,3.88949656,84.706,84.672,10.629]
[1772836290416,3.88949656,84.706,84.671,3.72381976]
[1772836290622,3.88949656,84.699,84.662,3.72381976]
[1772836290913,3.88949656,84.697,84.662,3.72381976]
[1772836292120,4.02779891,84.695,84.662,3.72381976]
[1772836297318,4.02779891,84.695,84.656,10.631]
[1772836300117,4.02779891,84.695,84.656,14.3853209]
[1772836303313,4.02779891,84.695,84.657,3.7543209]
[1772836308516,4.02779891,84.695,84.577,11.81]
[1772836308517,4.02779891,84.689,84.631,3.7543209]
[1772836308723,4.02779891,84.687,84.631,3.7543209]
[1772836308922,4.02779891,84.679,84.631,3.7543209]
[1772836309820,4.02779891,84.679,84.636,10.634]
[1772836310528,4.02779891,84.677,84.631,3.7543209]
[1772836310826,4.02779891,84.675,84.631,3.7543209]
[1772836311126,4.02779891,84.673,84.631,3.7543209]
[1772836311922,4.02779891,84.669,84.631,3.7543209]
[1772836312127,4.02779891,84.669,84.621,3.7543209]
[1772836312931,4.02779891,84.669,84.623,3.7543209]
[1772836313928,4.02779891,84.669,84.625,3.7543209]
[1772836314424,4.02779891,84.669,84.634,14.3883209]
[1772836314621,4.02779891,84.669,84.635,3.7543209]
[1772836323029,4.02779891,84.669,84.627,10.635]
[1772836323425,4.02779891,84.669,84.627,14.65521015]
[1772836323628,4.02779891,84.669,84.628,4.02021015]
[1772836326630,3.8103374,84.68,84.641,4.02021015]
[1772836335934,3.8103374,84.679,84.633,10.634]
[1772836336129,3.8103374,84.669,84.632,4.02021015]
[1772836336328,3.8103374,84.667,84.632,4.02021015]
[1772836336734,3.8103374,84.667,84.624,10.635]
[1772836337542,3.8103374,84.667,84.624,14.65521015]
[1772836337732,3.8103374,84.665,84.624,14.65521015]
[1772836338342,3.8103374,84.665,84.625,4.02021015]
[1772836344131,3.8103374,84.663,84.625,4.02021015]
[1772836345538,3.8103374,84.659,84.616,4.02021015]
[1772836346538,3.8103374,84.659,84.618,4.02021015]
[1772836347441,3.8103374,84.659,84.623,4.02021015]
[1772836348433,3.8103374,84.659,84.625,4.02021015]
[1772836349638,3.8103374,84.659,84.626,14.65521015]
[1772836350748,3.8103374,84.659,84.627,4.02021015]
[1772836351348,3.8103374,84.657,84.619,10.636]
[1772836353146,3.80763464,84.655,84.619,10.636]
[1772836353845,3.80763464,84.655,84.614,4.02021015]
[1772836354048,3.80763464,84.649,84.614,4.02021015]
[1772836354551,7.33024913,84.648,84.614,4.02021015]
[1772836354752,3.80763464,84.646,84.614,4.02021015]
[1772836355551,3.80763464,84.639,84.599,4.0044032]
[1772836355749,3.80763464,84.637,84.599,4.0044032]
[1772836355945,3.80763464,84.635,84.599,4.0044032]
[1772836357449,3.80763464,84.633,84.599,4.0044032]
[1772836359549,3.80763464,84.629,84.581,4.0044032]
[1772836367156,3.80763464,84.629,84.59,4.0044032]
[1772836367354,3.80763464,84.629,84.591,4.0044032]
[1772836368758,3.80763464,84.629,84.593,4.0044032]
[1772836374867,3.80763464,84.629,84.6,3.65324556]
[1772836375168,3.80763464,84.629,84.591,4.0044032]
[1772836375767,10.635,84.627,84.591,4.0044032]
[1772836378168,3.80763464,84.629,84.591,4.0044032]
[1772836393892,3.68140663,84.628,84.591,4.0044032]
[1772836398089,9.19334778,84.627,84.591,4.0044032]
[1772836398289,3.68140663,84.628,84.591,4.0044032]
[1772836398589,9.19351773,84.627,84.591,4.0044032]
[1772836398793,3.68140663,84.628,84.591,4.0044032]
[1772836398990,9.19365417,84.627,84.591,4.0044032]
[1772836399190,9.19365417,84.626,84.591,4.0044032]
[1772836399394,3.68140663,84.628,84.591,4.0044032]
[1772836399594,9.19820145,84.627,84.591,4.0044032]
[1772836399795,16.40150919,84.626,84.591,4.0044032]
[1772836399992,7.20330774,84.625,84.591,4.0044032]
[1772836400194,16.40485123,84.624,84.591,4.0044032]
[1772836400398,7.20330774,84.623,84.591,4.0044032]
[1772836400598,7.20330774,84.622,84.591,4.0044032]
[1772836400798,3.68140663,84.628,84.591,4.0044032]
[1772836400994,9.20162803,84.627,84.591,4.0044032]
[1772836401199,3.68140663,84.628,84.591,4.0044032]
[1772836401200,9.20162803,84.626,84.591,4.0044032]
[1772836401396,9.20162803,84.625,84.591,4.0044032]
[1772836401604,9.20162803,84.624,84.591,4.0044032]
[1772836401805,3.68140663,84.628,84.591,4.0044032]
[1772836402007,9.20196091,84.627,84.591,4.0044032]
[1772836402206,9.20196091,84.626,84.591,4.0044032]
[1772836402410,9.20196091,84.625,84.591,4.0044032]
[1772836402609,9.20196091,84.624,84.591,4.0044032]
[1772836402904,9.20196091,84.623,84.591,4.0044032]
[1772836403105,3.68140663,84.628,84.591,4.0044032]
[1772836403306,9.20386669,84.627,84.591,4.0044032]
[1772836403505,9.20386669,84.626,84.591,4.0044032]
[1772836403707,9.20386669,84.625,84.591,4.0044032]
[1772836403910,9.20386669,84.624,84.591,4.0044032]
[1772836404104,9.20386669,84.623,84.591,4.0044032]
[1772836404302,3.68140663,84.628,84.591,4.0044032]
[1772836404503,9.19695214,84.627,84.591,4.0044032]
[1772836404702,3.68140663,84.625,84.591,4.0044032]
[1772836404903,9.19695214,84.624,84.591,4.0044032]
[1772836405102,9.19695214,84.623,84.591,4.0044032]
[1772836405301,3.68140663,84.625,84.591,4.0044032]
[1772836405504,9.19693652,84.624,84.591,4.0044032]
[1772836405700,9.19693652,84.623,84.591,4.0044032]
[1772836405910,3.68140663,84.625,84.591,4.0044032]
[1772836406210,9.19693652,84.624,84.591,4.0044032]
[1772836406510,9.19693652,84.623,84.591,4.0044032]
[1772836406701,3.68140663,84.625,84.591,4.0044032]
[1772836406902,9.19694454,84.624,84.591,4.0044032]
[1772836407100,9.19694454,84.623,84.591,4.0044032]
[1772836407305,3.68140663,84.625,84.591,4.0044032]
[1772836407501,9.1969538,84.624,84.591,4.0044032]
[1772836407709,9.1969538,84.623,84.591,4.0044032]
[1772836407911,3.68140663,84.625,84.591,4.0044032]
[1772836408109,9.1969538,84.624,84.591,4.0044032]
[1772836408311,9.1969538,84.623,84.591,4.0044032]
[1772836408509,3.68140663,84.624,84.591,4.0044032]
[1772836408713,9.19695735,84.623,84.591,4.0044032]
[1772836408914,3.68140663,84.624,84.591,4.0044032]
[1772836409114,9.19695735,84.623,84.591,4.0044032]
[1772836409414,3.68140663,84.624,84.591,4.0044032]
[1772836409614,9.19696092,84.623,84.591,4.0044032]
[1772836409814,3.68140663,84.624,84.591,4.0044032]
[1772836410112,9.19696092,84.623,84.591,4.0044032]
[1772836410313,3.68140663,84.624,84.591,4.0044032]
[1772836410614,9.19697873,84.623,84.591,4.0044032]
[1772836410814,3.68140663,84.624,84.591,4.0044032]
[1772836411009,9.19630338,84.623,84.591,4.0044032]
[1772836411208,9.19630338,84.622,84.591,4.0044032]
[1772836411408,3.68140663,84.624,84.591,4.0044032]
[1772836411813,3.94359072,84.641,84.601,3.87839762]
[1772836412016,3.94359072,84.639,84.601,3.87839762]
[1772836412316,3.94359072,84.637,84.601,3.87839762]
[1772836412512,9.19787197,84.636,84.601,3.87839762]
[1772836412816,9.19787197,84.635,84.601,3.87839762]
[1772836413007,9.19787197,84.634,84.601,3.87839762]
[1772836413207,9.19787197,84.633,84.601,3.87839762]
[1772836413411,9.19787197,84.632,84.601,3.87839762]
[1772836413608,9.19787197,84.631,84.601,3.87839762]
[1772836413910,9.19787197,84.63,84.601,3.87839762]
[1772836414108,9.19787197,84.629,84.601,3.87839762]
[1772836414316,3.94359072,84.637,84.601,3.87839762]
[1772836414615,9.19681869,84.636,84.601,3.87839762]
[1772836414816,9.19681869,84.635,84.601,3.87839762]
[1772836415017,9.19681869,84.634,84.601,3.87839762]
[1772836415217,9.19681869,84.633,84.601,3.87839762]
[1772836415417,9.19681869,84.632,84.601,3.87839762]
[1772836415612,9.19681869,84.631,84.601,3.87839762]
[1772836415813,9.19681869,84.63,84.601,3.87839762]
[1772836416014,3.94359072,84.637,84.601,3.87839762]
[1772836416214,9.19610496,84.636,84.601,3.87839762]
[1772836416510,9.19610496,84.635,84.601,3.87839762]
[1772836416815,9.19610496,84.634,84.601,3.87839762]
[1772836417010,9.19610496,84.633,84.601,3.87839762]
[1772836417214,9.19610496,84.632,84.601,3.87839762]
[1772836417410,9.19610496,84.631,84.601,3.87839762]
[1772836417616,9.19610496,84.63,84.601,3.87839762]
[1772836417916,3.94359072,84.637,84.601,3.87839762]
[1772836418219,3.94359072,84.635,84.601,3.87839762]
[1772836418417,9.1929499,84.634,84.601,3.87839762]
[1772836418618,9.1929499,84.633,84.601,3.87839762]
[1772836418918,9.1929499,84.632,84.601,3.87839762]
[1772836419118,9.1929499,84.631,84.601,3.87839762]
[1772836419419,3.94359072,84.635,84.601,3.87839762]
[1772836419620,9.19229118,84.634,84.601,3.87839762]
[1772836419819,9.19229118,84.633,84.601,3.87839762]
[1772836420019,9.19229118,84.632,84.601,3.87839762]
[1772836420323,11.05714716,84.69,84.622,21.271]
[1772836420513,7.77030585,84.71,84.67,3.65636502]
[1772836421021,7.77030585,84.71,84.671,10.629]
[1772836423919,7.93597311,84.721,84.68,10.628]
[1772836425823,3.65636502,84.72,84.68,10.628]
[1772836427824,11.62431159,84.72,84.68,10.628]
[1772836428025,7.96794657,84.719,84.68,10.628]
[1772836456065,7.96794657,84.719,84.68,3.65636502]
[1772836456468,7.96794657,84.719,84.68,3.64791145]
[1772836457770,7.96794657,84.719,84.691,10.627]
[1772836461670,7.936459,84.729,84.691,10.627]
[1772836461974,7.936459,84.729,84.697,10.626]